Cogmind - Beta 16 @@@ ROGUE MODE // 2025.12.09 @ 17:13:10 Player: omewwes Result: Destroyed by G-47 Trooper with Particle Gun Performance ------------- Evolutions (0) 0 Regions Visited (2) 400 Robots Destroyed (6) 30 Value Destroyed (232) 232 Prototype IDs (2) 40 Alien Tech Used (0) 0 Bonus (0) 0 TOTAL SCORE: 702 Bonus ------- None Cogmind --------- Core Integrity 0/250 Matter 300/300 Energy 249/250 System Corruption 0% Temperature Cool (9) Movement Rolling (80) Location -10/Mines Parts ------- > --- POWER (1) -------- Ion Engine > --- PROPULSION (2) --- Wheel > --- UTILITY (2) ------ Light Armor Plating Hacking Suite > --- WEAPON (2) ------- (None) > --- INVENTORY (5) ---- Seismic Detector Power Shielding Propulsion Shielding Hacking Suite Peak State ------------ > --- POWER ------------ Ion Engine > --- PROPULSION ------- Improved Hover Unit Improved Hover Unit > --- UTILITY ---------- Small Storage Unit Hacking Suite > --- WEAPON ----------- Rocket Launcher > --- INVENTORY -------- Improved Hover Unit Improved Hover Unit Cooling System Small Laser Small Laser Assault Rifle [Rating: 11] Favorites ----------- Power Ion Engine Engine Ion Engine Propulsion Improved Hover Unit Leg Aluminum Leg Wheel Wheel Hover Unit Improved Hover Unit Utility Hacking Suite Device Seismic Detector Storage Small Storage Unit Hackware Hacking Suite Protection Light Armor Plating Weapon Beam Cannon Energy Gun Small Laser Energy Cannon Beam Cannon Ballistic Gun Assault Rifle Launcher Rocket Launcher Build | -11 -10 -10 ------- Run | Yrd Mat Min Slots Evolved . | . . . Power . | . . . Propulsion . | . . . Utility . | . . . Weapon . | . . . Parts Attached 25 | 6 9 10 Power 6 | 1 2 3 Engine 6 | 1 2 3 Core . | . . . Reactor . | . . . Propulsion 7 | 2 2 3 Treads . | . . . Leg 2 | 2 . . Wheel 1 | . . 1 Hover 4 | . 2 2 Flight . | . . . Utility 7 | 1 3 3 Device 1 | . . 1 Storage 1 | 1 . . Processor . | . . . Hackware 1 | . 1 . Protection 4 | . 2 2 Artifact . | . . . Weapon 5 | 2 2 1 Energy Gun 2 | 1 1 . Energy Cannon 1 | . . 1 Ballistic Gun 1 | 1 . . Ballistic Cannon . | . . . Launcher 1 | . 1 . Special Weapon . | . . . Impact Weapon . | . . . Slashing Weapon . | . . . Piercing Weapon . | . . . Special Melee Weapon . | . . . Unidentified Prototypes . | . . . Parts Lost 10 | . 1 9 Power 3 | . 1 2 Propulsion 4 | . . 4 Utility 1 | . . 1 Weapon 2 | . . 2 Highest Loss Streak 3 | . 1 3 To Critical Strikes . | . . . Average Backups 4 | . 4 4 Power . | . . . Propulsion 1 | . 1 . Utility 2 | . 1 2 Weapon . | . 1 . Tool/Special . | . . . Unused Backups 5 | . 3 2 Power 1 | . 1 . Propulsion . | . . . Utility 4 | . 2 2 Weapon . | . . . Tool/Special . | . . . Average Slot Usage (%) 80 | . 84 79 Engine 14 | . 14 14 Wheel 2 | . . 3 Hover 21 | . 25 19 Device 1 | . . 1 Storage 2 | . 8 . Hackware 12 | . 8 14 Protection 10 | . 5 12 Energy Gun 2 | . 7 . Energy Cannon 6 | . . 8 Launcher 5 | . 8 4 Peak Build Rating 11 | 6 11 11 Average Rating 9 | 3 9 9 On Entrance 5 | . 6 11 Avg Prop Armor Cover (%) 8 | . 9 8 Naked Turns . | . . . Heaviest Build 15 | 13 15 12 Greatest Support 20 | 20 20 14 Greatest Overweight (x) 1 | . 1 1 Average Overweight (x) . | . . . Largest Inventory Capacity 8 | 8 8 5 Average Capacity 5 | 6 6 5 Most Carried 6 | . 6 5 Average Carried 4 | . 4 4 Final Capacity 8 | 8 5 5 Final Carried 5 | . 5 4 Class Distribution -------------------- 100% | Mutant Dominant Class ---------------- Mutant | -10/Materials Mutant | -10/Mines Resources | -11 -10 -10 ----------- Run | Yrd Mat Min Matter Collected 521 | 170 118 233 Remotely . | . . . Salvage Created 222 | . 69 153 Parts 12 | . 5 7 Haulers Intercepted . | . . . Recyclers Shooed . | . . . Parts Field Recycled . | . . . Retrieved Matter . | . . . Parts Self-Destructed . | . . . Prevented . | . . . Parts Restored . | . . . Kills | -11 -10 -10 ------- Run | Yrd Mat Min Combat Hostiles Destroyed 10 | . 2 8 Cannons 6 | . . 6 AOE 4 | . 2 2 Classes Destroyed 3 | . 2 1 Operator 1 | . 1 . Grunt 5 | . 2 3 Assembled 5 | . . 5 Best Kill Streak 2 | . 2 2 Combat Bots Only 2 | . 2 2 Max Kills in Single Turn 2 | . 2 1 Gunslinging . | . . . Exploded 2 | . 2 1 Melee . | . . . Uniques/NPCs Destroyed . | . . . Combat | -11 -10 -10 -------- Run | Yrd Mat Min Hostile Shots Fired 88 | . 3 85 Missed 33 | . . 33 Hits 55 | . 3 52 Melee 3 | . . 3 Projectile 52 | . 3 49 AOE 8 | . . 8 Damage Taken 1011 | . 89 922 Core 256 | . . 256 Absorbed by Shields . | . . . Redirected to Shielding 41 | . . 41 Core Remaining (%) 100 | 100 . . Volleys Fired 46 | . 4 42 Largest 2 | . 2 1 Hottest 80 | . 80 60 Shots Fired 47 | . 5 42 Gun 2 | . 2 . Cannon 39 | . . 39 Launcher 6 | . 3 3 Special . | . . . Kinetic . | . . . Thermal 41 | . 2 39 Explosive 6 | . 3 3 Electromagnetic . | . . . Robot Hit Streak 5 | . 2 5 Robot Miss Streak 4 | . 1 4 Penetration Max . | . . . Secondary Targets . | . . . Shots Hit Robots 26 | . 2 24 Core Hits 21 | . 4 17 Critical Kills . | . . . Critical Parts Destroyed . | . . . Critical Strikes . | . . . Melee Attacks . | . . . Impact . | . . . Slashing . | . . . Piercing . | . . . Sneak Attacks . | . . . Combat Hostiles . | . . . Follow-up Attacks . | . . . Damage Inflicted 672 | . 127 545 Guns 10 | . 10 . Cannons 385 | . . 385 Explosions 270 | . 117 153 Melee . | . . . Ramming 7 | . . 7 Kinetic . | . . . Thermal 395 | . 10 385 Explosive 270 | . 117 153 Electromagnetic . | . . . Impact . | . . . Slashing . | . . . Piercing . | . . . Highest Corruption . | . . . Average Corruption . | . . . Corruption Purged . | . . . Corruption Blocked . | . . . Overload Shots . | . . . Overflow Damage . | . . . Projectiles . | . . . Explosions . | . . . Melee . | . . . Knockbacks . | . . . Impact . | . . . Kinetic . | . . . Secondary . | . . . Self-Inflicted Damage 3 | . . 3 Shots . | . . . Rammed 5 | . . 5 Targets Rammed 5 | . . 5 Kicked . | . . . Crushed . | . . . Highest Temperature 176 | . 24 176 Average Temperature 51 | . 8 54 Received Heat Transfer 150 | . 24 126 Siege Activations . | . . . Martial Activations . | . . . Shielding Activations . | . . . Robots Disrupted . | . . . Combat Hostiles . | . . . Robots Corrupted . | . . . Combat Hostiles . | . . . Parts Fried . | . . . Impact Corruptions . | . . . Robots Melted . | . . . Combat Hostiles . | . . . Parts Melted . | . . . Heat Transferred 839 | . 25 814 Parts Sabotaged . | . . . Parts Stolen . | . . . Parts Stripped . | . . . Power Chain Reactions . | . . . Alert | -11 -10 -10 ------- Run | Yrd Mat Min Maximum Alert Level . | . . . Low Security (%) 100 | 100 100 100 Level 1 . | . . . Level 2 . | . . . Level 3 . | . . . Level 4 . | . . . Level 5 . | . . . High Security . | . . . Max Security . | . . . Peak Influence 95 | . 95 92 Initial 20 | . . 20 Average 31 | . 42 29 Influence Increases 390 | . 138 252 Destroy 0b10 Robot/C 100 | . 40 60 Destroy 0b10 Robot/NC 5 | . 5 . Destroy Leader 20 | . 10 10 Successful Hack 5 | . 5 . Disable Machine 30 | . 30 . Destroy Structure 35 | . 18 17 Lose Combat Pursuer 195 | . 30 165 Influence Decreases 390 | . 85 305 Entered New Map 33 | . . 33 Time Decay 271 | . 75 196 Lost Part 86 | . 10 76 Squads Dispatched . | . . . Investigation . | . . . Extermination . | . . . Reinforcement . | . . . Assault . | . . . Garrison . | . . . Intercept . | . . . Searches Triggered . | . . . Construction Impeded . | . . . Haulers Reinforced . | . . . Active Scanning Responses . | . . . Cargo Convoy Interrupts . | . . . Stealth | -11 -10 -10 --------- Run | Yrd Mat Min Distress Signals 2 | . . 2 Communications Jammed . | . . . Distress Signals . | . . . Times Spotted 35 | . 7 28 Peak Tracking Total 4 | . 3 4 Tactical Retreats 10 | . 2 8 Traps | -11 -10 -10 ------- Run | Yrd Mat Min Traps Triggered 1 | . 1 . Indirectly . | . . . Trap Hack Attempts . | . . . Triggered . | . . . Disarmed . | . . . Reprogrammed . | . . . Reused . | . . . Traps Extracted . | . . . Installed . | . . . Triggered . | . . . Machines | -11 -10 -10 ---------- Run | Yrd Mat Min Machines Disabled 2 | . 2 . Max in Single Turn 2 | . 2 . Machines Repaired . | . . . Machines Dismantled . | . . . Machines Sabotaged . | . . . Overloaded Fab Kills . | . . . Hacking | -11 -10 -10 --------- Run | Yrd Mat Min Machines Accessed 4 | . 4 . Terminals 4 | . 4 . Fabricators . | . . . Repair Stations . | . . . Recycling Units . | . . . Scanalyzers . | . . . Garrison Access . | . . . Total Hacks 11 | . 11 . Successful 5 | . 5 . Failed 6 | . 6 . Catastrophic . | . . . Database Lockouts . | . . . Manual 4 | . 4 . Terminals 11 | . 11 . Fabricators . | . . . Repair Stations . | . . . Recycling Units . | . . . Scanalyzers . | . . . Garrison Access . | . . . Terminal Hacks 5 | . 5 . Prototype ID Bank 1 | . 1 . Branch Access Points 1 | . 1 . Locate Traps 1 | . 1 . Hauler Manifests 1 | . 1 . Zone Layout 1 | . 1 . Fabricator Hacks . | . . . Repair Station Hacks . | . . . Recycling Unit Hacks . | . . . Scanalyzer . | . . . Garrison Access Hacks . | . . . Unauthorized Hacks . | . . . Terminals . | . . . Fabricators . | . . . Repair Stations . | . . . Recycling Units . | . . . Scanalyzers . | . . . Garrison Access . | . . . Data Cores Recovered 1 | . 1 . Used 1 | . 1 . Hacking Detections 3 | . 3 . Full Trace Events . | . . . Feedback Events . | . . . Feedback Blocked . | . . . Robot Schematics Acquired . | . . . Robots Built . | . . . Authchips . | . . . Time . | . . . Total Robot Build Rating . | . . . Part Schematics Acquired . | . . . Parts Built . | . . . Authchips . | . . . Time . | . . . Total Part Build Rating . | . . . Part Studies Acquired . | . . . Parts Repaired . | . . . Time . | . . . Parts Recycled . | . . . Recycled Matter . | . . . Retrieved Matter . | . . . Retrieved Components . | . . . Parts Scanalyzed . | . . . Part Schematics Acquired . | . . . Parts Damaged . | . . . Bothacking | -11 -10 -10 ------------ Run | Yrd Mat Min Used RIF Installer . | . . . Robots Hacked . | . . . Non-combat . | . . . Combat . | . . . Robot Hacks Applied . | . . . Relay Couplers Released . | . . . Fabnet Peak Effective % . | . . . Robots Rewired . | . . . Allies Hacked . | . . . Hacks Repelled . | . . . Allies | -11 -10 -10 -------- Run | Yrd Mat Min Total Allies . | . . . Largest Group . | . . . Highest-Rated Group . | . . . Highest-Rated Ally . | . . . Total Orders . | . . . Ally Attacks . | . . . Total Damage . | . . . Kills . | . . . Allies Corrupted . | . . . Allies Melted . | . . . Intel | -11 -10 -10 ------- Run | Yrd Mat Min Active Infowar (turns) 71 | . . 71 Seismic 71 | . . 71 Robot Analysis Total . | . . . Derelict Logs Recovered 1 | . . 1 Drone Launches . | . . . Drone Recoveries . | . . . Exploration | -11 -10 -10 ------------- Run | Yrd Mat Min Turns Passed 786 | 45 210 531 Spaces Moved 994 | 34 296 664 Core 6 | 6 . . Treads . | . . . Legs 33 | 28 5 . Wheels 86 | . . 86 Hover 869 | . 291 578 Flight . | . . . Fastest Speed 50 | 50 56 56 Average Speed 61 | 107 57 60 Slowest Speed 130 | 120 130 120 Overloaded Moves . | . . . Propulsion Burnouts . | . . . Robots Hopped . | . . . Potential Cave-ins . | . . . Cave-ins Triggered . | . . . Exploration Rate (%) 45 | 3 42 91 Regions Visited 2 Branch Regions 1 Pre-discovered Areas 1 | . . 1 Known Exits Taken 1 | . 1 . Unknown Exits Taken 1 | 1 . . Scrap Searched 1 | . . 1 Spaces Dug . | . . . Terrain Destroyed 46 | . 19 27 Melee . | . . . Projectile . | . . . AOE 46 | . 19 27 Terrain Rammed . | . . . Walls Destroyed . | . . . Machines Disabled . | . . . Actions | -11 -10 -10 --------- Run | Yrd Mat Min Total 1121 | 39 333 749 Wait 21 | . . 21 Move 992 | 33 295 664 Hop . | . . . Pick Up 12 | . 11 1 Fast Attach 15 | 6 5 4 Attach 6 | . 1 5 Detach 6 | . 4 2 Swap 7 | . 3 4 Drop 11 | . 10 1 Fire 46 | . 4 42 Melee . | . . . Ram 5 | . . 5 Kick . | . . . Crush . | . . . Escape Stasis . | . . . Rewire . | . . . Trap . | . . . Miscellaneous . | . . . Route ------- -11/Scrapyard -10/Materials (discovered 2 exits: [*Mat] / *Min) -10/Mines (discovered 3 exits: [*Mat x2] / [*Sub]) History --------- Turn | Location | Event 4 | -11/Scrapyard | Discovered new exit (range 16) 46 | -11/Scrapyard | Entered Materials 134 | -10/Materials | Identified exit to Mines 177 | -10/Materials | Discovered new exit (range 4) 256 | -10/Materials | Entered Mines 259 | -10/Mines | Learned 2 Materials zone layouts 259 | -10/Mines | Joined a pair of Derelicts in attacking an 0b10 outpost 269 | -10/Mines | Learned location of Storage (-7) 296 | -10/Mines | Discovered new exit (range 10) 305 | -10/Mines | Build established: Mutant 331 | -10/Mines | Found DCF Scrap (14 items) 339 | -10/Mines | Discovered new exit (range 9) 380 | -10/Mines | Discovered new exit (range 10) 383 | -10/Mines | Assembled infested the area 463 | -10/Mines | Lost 3 parts (1n1u1w) 596 | -10/Mines | Core integrity fell below 50% 725 | -10/Mines | Lost 3 parts (2p1n) 775 | -10/Mines | Core integrity fell below 20% 787 | -10/Mines | Destroyed by G-47 Trooper with Particle Gun Last Messages --------------- 00497_ Acquired 5 matter. 00535_ Imp. Hover Unit destroyed. 00610_ as-04428 destroyed. 00612_ Acquired 15 matter. 00634_ as-66572 destroyed. 00636_ Acquired 10 matter. 00637_ Acquired Wheel. 00648_ as-70673 destroyed. 00674_ Lgt. Ion Engine destroyed. 00678_ as-34103 destroyed. 00680_ Acquired 15 matter. 00687_ Imp. Hover Unit destroyed. 00694_ Lgt. Ion Engine destroyed. 00696_ as-50086 destroyed. 00699_ Acquired 10 matter. 00705_ Acquired Seismic Detector. 00707_ Acquired 10 matter. 00776_ Beam Cannon destroyed. 00777_ Slammed into G-47 Trooper. 00778_ Slammed into G-34 Mercenary. Map ----- +----------------------------------------------------+ | | | | | | | | | | | | | | | | | | | | | | | | | | | | | | | | | | | ?????????????????????????????????????????? | | ?????????????????????????????????????????? | | ?????????????????????????????????????????? | | ?????????????????????????????????????????? | | ?????????????????????????????????????????? | | ??#######????????????????????????????????? | | ??# ???????????????????????????????? | | ??# ###########????????????????????? | | ??# %%g%% g @ #???####?????????????? | | ??# """##### ## #?????????????? | | ??# """????# #? #?????????????? | | ??# ""?????# #??###### #?????????????? | | ??# ?????# #???????# #?????????????? | | ????####??????# #???????# #?????????????? | | ??????????????# #???????# #?????????????? | | ??????????????# #######?# #?????????????? | | ??????????????# #?# #??????? ??? | | ?????????###??# ##### ### #?????? #???? | | ????????## ### #???# ## ##??? #????# | | ???????## ## #???# ### #????# | | ???????# #???#### #????# | | ??????# #######??## ##????# | | ??????# ##?## #### ####????## | | ??????## #???# ## ##????#### | | ???????######### ! " ## ##???### | | ???????????# =!%| ##?###???## < | | ??????###### =%= ########????????# | | ??????# % ######???????????????## # | | ??????# ######?????????????????????### ## | | ??????# #????????????????????????????####? | | ?????## #????????????????????????????????? | | ????## ##???????????????????????????????? | | ????# %#????????##?????????????????????? | +----------------------------------------------------+ Best States ------------- Heat Dissipation 25 Energy Generation 10 Energy Capacity 250 Matter Stores 300 Matter Capacity 300 Sight Range 16 Terrain Scan Density 10 Armor Coverage 150 Propulsion Shielding 33 Evasion (%) 55 Offensive Hacking 10 Item Schematics ----------------- None Robot Schematics ------------------ None Fabricated ------------ Nothing Repaired ---------- Nothing Studied --------- None Alien Tech Used ----------------- None Achievements -------------- None Challenges ------------ None Game ------ Seed MobilePitchforkReconstructor Manual? 0 Play Time 00:14:31 Cumulative 141.9 hours Start 2025.12.09 @ 16:22:32 End 2025.12.09 @ 17:13:10 Sessions 2 Manual Loads 0 Difficulty Rogue Special Mode None Game No. 116 Rogue 116 Adventurer 0 Explorer 0 Win Type - Total 1 Types 1/0/0/0/0/0/0/0/0/0 Lore% 65 Gallery% 66 Achievement% 55 Wizard Run 0 Options --------- Layout 1 ASCII 0 Keyboard 1 Movement Vi Keybinds 0 Fullscreen 1 Font 24/Terminus Map View 50x35 Zoom Use 0% Tactical HUD 1 Map Filters NONE Filters NONE Steam 1 RUN: 224c1066-be10-438e-9656-41ad72ff7d05